bitfinex-derivatives/quotes_SOLF0:USTF0_20250127
["timestamp","ask_amount","ask_price","bid_price","bid_amount"]
[1738014406902,4.2743,234.03,233.94,4.2759]
[1738014407103,0.03219753,234.04,233.92,27.3398478]
[1738014407305,0.03219753,234.04,234.0,27.3398478]
[1738014407608,1.4956,234.11,234.0,27.3398478]
[1738014408102,0.02708114,234.04,234.03,0.03258475]
[1738014408493,1.4956,234.11,234.03,0.03258475]
[1738014408697,0.02726014,234.06,234.03,0.03258475]
[1738014411105,3.26,234.29,234.04,27.3398478]
[1738014411404,1.5679,234.16,234.04,27.3398478]
[1738014411600,4.273,234.1,234.04,27.3398478]
[1738014411800,1.5679,234.16,234.0,27.3398478]
[1738014412206,4.30244644,234.1,234.06,0.03170383]
[1738014412410,0.02924644,234.1,234.06,0.03170383]
[1738014414606,4.30224644,234.1,234.06,0.03170383]
[1738014415701,4.2732,234.09,234.06,0.03170383]
[1738014416210,0.02924644,234.1,234.06,0.03170383]
[1738014416401,4.2734,234.08,234.06,0.03170383]
[1738014416708,0.02924644,234.1,233.96,27.3398478]
[1738014416905,1.3226,234.07,233.92,27.3398478]
[1738014417202,1.326,234.06,233.92,27.3398478]
[1738014417506,4.2747,234.01,233.93,4.276]
[1738014417701,4.30181215,234.01,233.97,0.02867888]
[1738014418099,0.02711215,234.01,233.97,0.02867888]
[1738014418903,0.02711215,234.01,233.99,4.275]
[1738014419098,0.02711215,234.01,233.97,0.02867888]
[1738014420011,4.2733,234.09,233.97,0.02867888]
[1738014420201,2.6669,234.15,233.96,27.3398478]
[1738014420400,4.2749,234.0,233.92,27.3398478]
[1738014420605,16.84201212,234.04,233.84,16.84201212]
[1738014420804,1.3747,233.99,233.8,16.84201212]
[1738014421006,4.2773,233.87,233.8,16.84201212]
[1738014421309,1.3747,233.99,233.81,0.03285759]
[1738014421514,0.02865894,233.86,233.8,16.84201212]
[1738014421709,0.03238041,233.92,233.88,0.02758758]
[1738014421910,1.5121,233.98,233.8,16.84201212]
[1738014422113,4.2765,233.91,233.88,0.028164]
[1738014422412,0.02901992,233.92,233.76,16.84201212]
[1738014422709,16.84201212,233.96,233.76,16.84201212]
[1738014422908,1.5121,233.98,233.84,16.84201212]
[1738014423506,0.03204541,233.93,233.89,0.03264253]
[1738014423708,1.32647541,233.98,233.89,0.03264253]
[1738014423909,1.32647541,233.98,233.9,4.2766]
[1738014424213,1.3747,233.99,233.89,0.03264253]
[1738014424812,0.02728351,233.96,233.89,0.03264253]
[1738014427218,0.02728351,233.96,233.92,16.84201212]
[1738014428515,0.02728351,233.96,233.92,21.11821212]
[1738014428819,0.02728351,233.96,233.92,16.84201212]
[1738014429415,0.02728351,233.96,233.92,21.11821212]
[1738014430014,0.02728351,233.96,233.92,16.84201212]
[1738014430212,0.02728351,233.96,233.89,0.03264253]
[1738014430620,4.2759,233.94,233.89,0.03264253]
[1738014430820,0.02728351,233.96,233.89,0.03264253]
[1738014431113,4.2764,233.92,233.89,0.03264253]
[1738014431320,0.02728351,233.96,233.89,0.03264253]
[1738014431521,1.4584,233.95,233.89,0.03264253]
[1738014432014,4.2767,233.9,233.89,0.03264253]
[1738014432215,1.4584,233.95,233.89,0.03264253]
[1738014432413,0.02728351,233.96,233.89,0.03264253]
[1738014432414,0.02728351,233.96,233.91,4.2763]
[1738014432612,0.02728351,233.96,233.92,16.84201212]
[1738014433216,0.02728351,233.96,233.89,0.03264253]
[1738014434119,0.02728351,233.96,233.89,4.30944253]
[1738014434319,0.02728351,233.96,233.89,0.03264253]
[1738014434912,4.30288351,233.96,233.89,0.03264253]
[1738014435116,0.02728351,233.96,233.89,0.03264253]
[1738014435322,0.02728351,233.96,233.92,4.2763]
[1738014435523,0.02728351,233.96,233.92,16.84201212]
[1738014435718,1.3564,234.11,233.92,16.84201212]
[1738014435916,4.2739,234.05,233.97,16.84201212]
[1738014436119,2.851,234.1,233.97,16.84201212]
[1738014436722,4.2738,234.06,233.97,21.11741212]
[1738014436919,4.3060905,234.06,234.01,0.02957787]
[1738014437222,0.0322905,234.06,234.01,0.02957787]
[1738014437816,0.0322905,234.06,234.03,4.2742]
[1738014438021,0.0322905,234.06,234.02,16.84201212]
[1738014438732,0.0322905,234.06,234.01,0.02957787]
[1738014440228,0.0322905,234.06,234.02,16.84201212]
[1738014440422,0.0322905,234.06,234.03,4.2742]
[1738014440624,0.0322905,234.06,234.02,16.84201212]
[1738014441226,0.0322905,234.06,234.02,21.11631212]
[1738014441427,0.0322905,234.06,234.01,0.02957787]
[1738014442525,4.2742,234.04,234.01,0.02957787]
[1738014442727,0.0322905,234.06,234.01,0.02957787]
[1738014442932,4.275,234.0,233.91,4.2765]
[1738014443132,1.5296,234.05,233.85,13.44654017]
[1738014443536,4.2748,234.0,233.92,4.2763]
[1738014443738,4.2748,234.0,233.85,3.26]
[1738014443937,1.5296,234.05,233.84,3.26]
[1738014444139,0.03167573,233.96,233.94,4.2758]
[1738014444333,0.03167573,233.96,233.92,0.03002541]
[1738014444537,1.5296,234.05,233.95,16.84201212]
[1738014444732,4.2729,234.11,234.01,4.2746]
[1738014445035,1.5296,234.15,234.04,0.03022458]
[1738014445240,0.03089482,234.08,234.04,0.03022458]
[1738014445646,0.03089482,234.08,234.07,4.2736]
[1738014446240,0.03089482,234.08,234.05,16.84201212]
[1738014446440,1.5296,234.15,234.05,16.84201212]
[1738014446644,23.2565988,234.24,234.08,27.31855354]
[1738014446840,2.9068,234.23,234.08,27.31855354]
[1738014447041,4.2715,234.19,234.09,4.2731]
[1738014447232,2.9068,234.23,234.08,27.31855354]
[1738014447638,0.03080282,234.18,234.13,0.02748908]
[1738014449136,0.03080282,234.18,234.16,27.31855354]
[1738014449333,1.4763,234.3,234.16,27.31855354]
[1738014449548,23.2565988,234.32,234.25,4.2702]
[1738014449745,0.2093,234.35,234.25,4.2702]
[1738014450143,4.4778,234.35,234.24,31.58895354]
[1738014450343,0.2093,234.35,234.2,27.31855354]
[1738014450543,0.03008138,234.32,234.27,0.02808425]
[1738014451540,4.2699,234.27,234.16,27.31855354]
[1738014452444,4.2703,234.25,234.16,27.31855354]
[1738014452646,0.03033692,234.24,234.19,0.02755769]
[1738014452848,2.79953692,234.24,234.19,0.02755769]
[1738014453043,0.03033692,234.24,234.19,0.02755769]
[1738014454543,4.2711,234.21,234.19,0.02755769]
[1738014455142,0.03033692,234.24,234.09,27.31855354]
[1738014455350,27.31855354,234.28,234.05,27.31855354]
[1738014455648,27.31855354,234.28,234.01,10.18654017]
[1738014455649,27.31855354,234.2,234.01,37.50509371]
[1738014455847,1.4538,234.19,234.01,37.50509371]
[1738014456042,1.4538,234.19,234.01,27.31855354]
[1738014456551,0.03117326,234.12,234.08,0.03046573]
[1738014457458,4.2732,234.09,234.08,0.03046573]
[1738014457646,0.03117326,234.12,234.08,0.03046573]
[1738014459356,0.03117326,234.12,234.09,27.31855354]
[1738014459556,27.31855354,234.28,234.09,27.31855354]
[1738014459757,4.2715,234.18,234.09,27.31855354]
[1738014460056,1.437,234.27,234.09,27.31855354]
[1738014460253,4.2704,234.25,234.16,4.2718]
[1738014460854,0.03267342,234.23,234.18,0.02774239]
[1738014461656,0.03267342,234.23,234.09,27.31855354]
[1738014461859,4.2718,234.17,234.09,27.31855354]
[1738014462157,1.437,234.27,234.09,27.31855354]
[1738014462754,0.02879091,234.2,234.16,0.02868724]
[1738014462959,4.2714,234.19,234.16,0.02868724]
[1738014463160,0.02879091,234.2,234.16,0.02868724]
[1738014464060,0.02879091,234.2,234.17,4.2717]
[1738014464258,0.02879091,234.2,234.16,0.02868724]
[1738014464855,73.3,234.39,234.18,27.31855354]
[1738014465059,1.4587,234.34,234.18,27.31855354]
[1738014466059,0.02739356,234.28,234.24,0.02896867]
[1738014466564,0.02739356,234.28,234.24,4.29936867]
[1738014466862,0.02739356,234.28,234.24,0.02896867]
[1738014468562,43.48276763,234.43,234.26,27.31855354]
[1738014468763,1.3824,234.51,234.31,27.31855354]
[1738014468960,0.0775,234.35,234.31,27.31855354]
[1738014469361,0.0775,234.35,234.34,4.2686]
[1738014469559,2.7612,234.49,234.31,27.31855354]
[1738014469755,2.7612,234.49,234.37,27.31855354]
[1738014469956,2.7612,234.49,234.32,0.02702717]
[1738014469957,4.2677,234.39,234.33,27.31855354]
[1738014470163,0.02984071,234.42,234.41,0.03132039]
[1738014470361,0.02984071,234.42,234.33,27.31855354]
[1738014470663,0.02984071,234.42,234.39,0.02875452]
[1738014471767,0.02984071,234.42,234.29,27.31855354]
[1738014471961,4.2682,234.37,234.29,27.31855354]
[1738014472163,0.02984071,234.42,234.29,27.31855354]
[1738014472362,27.31855354,234.44,234.25,27.31855354]
[1738014473060,0.03119666,234.37,234.32,0.02829795]
[1738014473465,3.26,234.47,234.25,27.31855354]
[1738014473668,0.03005253,234.37,234.32,0.03115939]
[1738014474164,0.03005253,234.37,234.32,0.02731755]
[1738014474165,0.02891921,234.37,234.32,0.02731755]
[1738014474468,0.02891921,234.37,234.34,4.2686]
[1738014474871,0.02891921,234.37,234.32,0.02731755]
[1738014475259,0.02891921,234.37,234.33,4.2688]
[1738014475669,0.02891921,234.37,234.32,0.02731755]
[1738014476867,4.2683,234.36,234.32,0.02731755]
[1738014477067,0.02891921,234.37,234.32,0.02731755]
[1738014477471,4.2687,234.34,234.32,0.02731755]
[1738014477668,0.02891921,234.37,234.32,0.02731755]
[1738014478173,4.2688,234.34,234.32,0.02731755]
[1738014478369,0.02891921,234.37,234.32,0.02731755]
[1738014478666,0.02891921,234.37,234.2,31.58955354]
[1738014478865,27.31855354,234.39,234.2,27.31855354]
[1738014479073,2.9002,234.38,234.2,27.31855354]
[1738014479266,2.9002,234.38,234.21,4.271]
[1738014479773,2.9002,234.38,234.16,28.38765354]
[1738014479967,4.2698,234.28,234.27,0.03174682]
[1738014480675,0.03273007,234.32,234.27,0.03174682]
[1738014481070,27.31855354,234.31,234.13,4.2723]
[1738014481370,27.31855354,234.31,234.07,27.31855354]
[1738014481575,4.2714,234.19,234.09,4.2731]
[1738014481771,27.31855354,234.31,234.09,4.2731]
[1738014482164,27.31855354,234.31,234.18,0.03196257]
[1738014482365,27.31855354,234.31,234.01,1.1293]
[1738014482366,27.31855354,234.27,234.03,27.31855354]
[1738014482572,27.31855354,234.23,234.03,27.31855354]
[1738014482766,27.31855354,234.23,234.03,31.59275354]
[1738014483167,4.2724,234.14,234.01,4.2745]
[1738014483369,1.22492,234.13,233.99,27.31855354]
[1738014483568,1.22492,234.13,234.05,0.03054097]
[1738014483569,0.0300038,234.1,234.05,0.03054097]
[1738014484577,4.2735,234.08,234.05,0.03054097]
[1738014484971,0.0300038,234.1,234.05,0.03054097]
[1738014485177,4.3031038,234.1,234.05,0.03054097]
[1738014485773,0.0300038,234.1,234.05,0.03054097]
[1738014486370,0.0300038,234.1,233.85,27.31855354]
[1738014486371,27.31855354,234.09,233.85,27.31855354]
[1738014487474,0.02901272,233.99,233.95,0.03126551]
[1738014487675,4.2744,234.03,233.95,0.03126551]
[1738014487871,0.02831517,233.99,233.95,0.03126551]
[1738014488075,27.31855354,234.09,233.95,0.03126551]
[1738014488272,0.02741533,233.99,233.97,4.2753]
[1738014488471,4.2733,234.09,233.97,4.2753]
[1738014488672,1.3794,234.12,233.97,4.2753]
[1738014488673,0.02860109,234.0,233.97,4.2753]
[1738014488882,1.3794,234.12,233.97,4.2753]
[1738014489080,0.02703415,234.01,233.97,4.2753]
[1738014489380,4.2736,234.07,233.98,4.2752]
[1738014489575,0.02852347,234.01,233.98,4.2752]
[1738014489883,0.02852347,234.01,233.99,4.275]
[1738014490479,1.22492,234.13,234.06,4.2736]
[1738014490981,4.2721,234.16,234.06,4.2736]
[1738014491177,1.5777,234.2,234.06,4.2736]
[1738014491691,4.2723,234.14,234.11,0.03115287]
[1738014492182,0.0295324,234.15,234.11,0.03115287]
[1738014495087,4.2723,234.14,234.11,0.03115287]
[1738014495585,0.0295324,234.15,234.11,0.03115287]
[1738014495783,0.0295324,234.15,233.97,27.31855354]
[1738014495981,27.31855354,234.21,233.97,27.31855354]
[1738014496389,4.2723,234.14,234.02,4.2744]
[1738014496589,27.31855354,234.21,233.97,27.31855354]
[1738014497089,0.03027462,234.11,234.07,0.03238676]
[1738014497387,4.2728,234.11,234.07,0.03238676]
[1738014497686,0.02859661,234.11,234.07,0.03238676]
[1738014497888,4.2731,234.1,234.07,0.03238676]
[1738014498185,0.02859661,234.11,234.07,0.03238676]
[1738014498493,0.02859661,234.11,234.1,4.273]
[1738014499999,2.8978,234.23,234.13,4.2723]
[1738014500193,2.8978,234.23,234.1,27.31855354]
[1738014500601,1.5777,234.23,234.18,4.2715]
[1738014500802,1.5777,234.23,234.1,27.31855354]
[1738014501097,5.8483,234.23,234.13,4.2723]
[1738014501302,5.8483,234.23,234.14,0.03076821]
[1738014501303,0.02832778,234.19,234.14,0.03076821]
[1738014501802,4.2717,234.17,234.14,0.03076821]
[1738014502002,0.02832778,234.19,234.14,0.03076821]
[1738014503201,4.2721,234.15,234.14,0.03076821]
[1738014503401,0.02832778,234.19,234.14,0.03076821]
[1738014504700,4.2716,234.18,234.14,0.03076821]
[1738014506697,0.02832778,234.19,234.18,4.2715]
[1738014507399,2.821,234.31,234.16,27.31855354]
[1738014507702,2.821,234.31,234.22,4.2707]
[1738014507904,2.821,234.31,234.16,27.31855354]
[1738014508100,2.821,234.31,234.24,4.2703]
[1738014508309,1.4785,234.31,234.2,27.31855354]
[1738014508803,2.6633,234.4,234.24,27.31855354]
[1738014508999,1.4673,234.39,234.24,27.31855354]
[1738014509307,4.2683,234.37,234.27,4.2698]
[1738014509504,1.4673,234.39,234.24,27.31855354]
[1738014510004,0.02761664,234.34,234.29,0.03052754]
[1738014512301,0.02761664,234.34,234.33,4.2688]
[1738014513196,0.02761664,234.34,234.29,27.34908108]
[1738014513401,0.02761664,234.34,234.29,0.03052754]
[1738014513797,0.02761664,234.34,234.31,4.2691]
[1738014514599,0.02761664,234.34,234.29,0.03052754]
[1738014516310,4.29641664,234.34,234.29,0.03052754]
[1738014516910,0.02761664,234.34,234.29,0.03052754]
[1738014518004,0.02761664,234.34,234.17,27.31855354]
[1738014518208,4.2689,234.33,234.22,4.2707]
[1738014518405,1.4905,234.32,234.22,4.2707]
[1738014518910,4.2695,234.3,234.17,27.31855354]
[1738014519315,0.03142029,234.26,234.21,0.02884601]
[1738014520709,4.2708,234.22,234.21,0.02884601]
[1738014521308,0.03142029,234.26,234.09,27.31855354]
[1738014521514,4.2717,234.18,234.09,27.31855354]
[1738014521715,27.31855354,234.27,234.06,0.1439]
[1738014521917,27.31855354,234.27,234.08,4.2733]
[1738014522217,4.2717,234.18,234.06,27.31855354]
[1738014522516,0.03105723,234.14,234.1,0.03017647]
[1738014522912,0.03105723,234.14,234.1,4.30327647]
[1738014523308,0.03105723,234.14,234.1,0.03017647]
[1738014525215,0.03105723,234.14,234.11,4.2729]
[1738014526416,0.03105723,234.14,234.1,0.03017647]
[1738014530823,1.4053,234.26,234.1,16.84202981]
[1738014531024,1.4053,234.26,234.14,16.81185334]
[1738014531422,1.4053,234.26,234.19,4.2713]
[1738014531725,1.4053,234.26,234.14,16.81185334]
[1738014532019,1.4053,234.26,234.04,315.58932751]
[1738014532020,1.4053,234.26,234.1,16.81185334]
[1738014532220,0.03245437,234.22,234.18,0.03201488]
[1738014535124,0.03245437,234.22,234.19,4.2714]
[1738014535325,0.03245437,234.22,234.18,0.03201488]
[1738014539822,0.03245437,234.22,234.18,16.84386822]
[1738014540027,2.8129,234.34,234.18,16.84386822]
[1738014540323,1.5078,234.33,234.18,16.81185334]
[1738014540923,1.5078,234.33,234.22,16.81185334]
[1738014541128,0.03046152,234.28,234.23,0.03129369]
[1738014541430,4.2049,234.42,234.27,4.27]
[1738014541927,4.2993106,234.37,234.32,0.03198821]
[1738014542227,0.0309106,234.37,234.32,0.03198821]
[1738014544131,0.0309106,234.37,234.32,4.30108821]
[1738014544432,0.0309106,234.37,234.32,0.03198821]
[1738014545724,0.0309106,234.37,234.33,4.2689]
[1738014546429,0.0309106,234.37,234.32,0.03198821]
[1738014546827,0.0309106,234.37,234.35,4.2685]
[1738014547223,0.0309106,234.37,234.32,0.03198821]
[1738014547427,0.0309106,234.37,234.36,4.2684]
[1738014547726,0.0309106,234.37,234.34,16.81185334]
[1738014548835,0.0309106,234.37,234.35,4.2685]
[1738014549533,0.0309106,234.37,234.32,0.03198821]
[1738014549930,0.0309106,234.37,234.35,4.2685]
[1738014550332,0.0309106,234.37,234.32,0.03198821]
[1738014550533,0.0309106,234.37,234.34,16.81185334]
[1738014550832,0.0309106,234.37,234.36,4.2684]
[1738014551733,0.0309106,234.37,234.34,21.08045334]
[1738014551933,0.0309106,234.37,234.34,16.81185334]
[1738014552534,4.3426,234.5,234.34,16.81185334]
[1738014553739,0.02820146,234.44,234.4,0.02987514]
[1738014554140,4.15972146,234.5,234.4,0.02987514]
[1738014554833,4.2665,234.47,234.4,0.02987514]
[1738014555236,0.03214129,234.46,234.4,0.02987514]
[1738014556131,0.03214129,234.46,234.42,16.81185334]
[1738014557041,0.03214129,234.46,234.45,4.2667]
[1738014557341,1.3416,234.58,234.42,16.81185334]
[1738014557540,16.81185334,234.67,234.47,16.81185334]
[1738014557844,2.6689,234.68,234.56,16.81185334]
[1738014558239,4.2624,234.69,234.59,4.264]
[1738014558440,0.03113661,234.64,234.6,0.02901661]
[1738014561146,0.03113661,234.64,234.6,16.84086995]
[1738014563953,1.4594,234.74,234.6,16.84086995]
[1738014564144,1.4594,234.74,234.66,4.2629]
[1738014564343,1.4594,234.74,234.64,16.81185334]
[1738014564743,16.81185334,234.84,234.64,16.81185334]
[1738014564950,3.24,234.91,234.64,16.81185334]
[1738014564951,4.1866,234.83,234.64,16.81185334]
[1738014565254,0.03010636,234.76,234.72,0.03145469]
[1738014566652,0.03010636,234.76,234.6,16.81185334]
[1738014566845,16.81185334,234.8,234.6,16.81185334]
[1738014567847,0.02823514,234.72,234.68,0.03179274]
[1738014569252,4.2628,234.67,234.56,16.81185334]
[1738014569748,1.3602,234.71,234.61,4.2638]
[1738014569954,1.3602,234.71,234.6,16.81185334]
[1738014570248,5.6224,234.71,234.63,0.03012674]
[1738014570551,0.02796789,234.68,234.63,0.03012674]
[1738014572655,0.02796789,234.68,234.64,16.81185334]
[1738014573050,0.02796789,234.68,234.63,0.03012674]
[1738014575255,0.02796789,234.68,234.64,21.07515334]
[1738014575859,0.02796789,234.68,234.64,16.81185334]
[1738014578259,0.02796789,234.68,234.63,0.03012674]
[1738014578759,0.02796789,234.68,234.52,16.81185334]
[1738014578956,16.81185334,234.75,234.52,16.81185334]
[1738014579254,9.9601,234.78,234.43,21.07895334]
[1738014579255,4.2652,234.54,234.43,21.07895334]
[1738014579463,16.81185334,234.67,234.47,16.81185334]
[1738014579658,2.7489,234.62,234.47,16.81185334]
[1738014579964,0.03032098,234.57,234.52,0.02822515]
[1738014580855,0.03032098,234.57,234.39,16.81185334]
[1738014581157,4.2661,234.49,234.38,4.268]
[1738014581459,4.2665,234.47,234.35,21.08025334]
[1738014581653,1.3971,234.46,234.35,16.81185334]
[1738014582062,0.03147533,234.43,234.38,0.02950604]
[1738014585360,0.03147533,234.43,234.41,4.2675]
[1738014586957,1.2999,234.53,234.47,4.2663]
[1738014587263,1.2999,234.53,234.44,16.81185334]
[1738014587463,1.2999,234.53,234.42,4.2671]
[1738014587759,1.2999,234.53,234.4,16.81185334]
[1738014588066,0.02987715,234.49,234.44,0.03264227]
[1738014590265,0.02987715,234.49,234.36,16.81185334]
[1738014590562,1.2999,234.53,234.32,16.81185334]
[1738014590766,4.2663,234.48,234.37,4.268]
[1738014590966,1.4687,234.47,234.37,4.268]
[1738014591362,1.4687,234.47,234.39,4.2677]
[1738014591563,0.0321171,234.44,234.4,0.02935151]
[1738014592463,0.0321171,234.44,234.4,16.84120485]
[1738014592967,0.0321171,234.44,234.43,4.2671]
[1738014594962,1.5774,234.53,234.49,4.266]
[1738014595164,1.5774,234.53,234.44,16.81185334]
[1738014596069,0.02702119,234.51,234.46,0.02826146]
[1738014597067,0.02702119,234.51,234.48,4.2661]
[1738014597464,0.02702119,234.51,234.46,0.02826146]
[1738014597863,0.02702119,234.51,234.5,4.2658]
[1738014599362,0.02702119,234.51,234.48,4.2662]
[1738014599866,0.02702119,234.51,234.46,0.02826146]
[1738014602169,16.81185334,234.72,234.48,16.81185334]
[1738014602472,2.8793,234.67,234.53,16.81185334]
[1738014603172,2.8793,234.67,234.58,16.81185334]
[1738014603474,0.02732028,234.59,234.58,21.07625334]
[1738014603969,1.3488,234.75,234.58,21.07605334]
[1738014604171,1.3196,234.74,234.58,16.81185334]
[1738014604469,4.262,234.71,234.6,4.264]
[1738014604671,1.3196,234.74,234.54,16.81185334]
[1738014605059,0.03125546,234.66,234.62,0.03092567]
[1738014605669,0.03125546,234.66,234.49,3.7108]
[1738014605862,16.81185334,234.72,234.49,3.7108]
[1738014606065,16.81185334,234.72,234.49,0.3531]
[1738014606066,4.2637,234.62,234.49,0.3531]
[1738014606361,16.81185334,234.68,234.48,16.81185334]
[1738014606561,1.4869,234.61,234.45,3.24]
[1738014606765,1.329,234.6,234.45,3.24]
[1738014606965,0.02701333,234.55,234.51,0.02794715]
[1738014607370,0.02701333,234.55,234.4,16.81185334]
[1738014607573,4.2661,234.49,234.38,3.24]
[1738014607774,16.81185334,234.56,234.38,3.24]
[1738014608471,16.81185334,234.56,234.36,16.81185334]
[1738014608670,0.02763906,234.49,234.45,0.03193142]
[1738014608865,0.02763906,234.49,234.36,16.81185334]
[1738014610173,0.02763906,234.49,234.4,0.03186118]
[1738014611173,4.2666,234.46,234.4,0.03186118]
[1738014611372,0.02763906,234.49,234.4,0.03186118]
[1738014612965,4.2667,234.46,234.4,0.03186118]
[1738014613170,1.3349,234.48,234.4,0.03186118]
[1738014613371,4.2668,234.45,234.4,0.03186118]
[1738014615368,4.2675,234.41,234.4,0.03186118]
[1738014615571,4.2675,234.41,234.28,16.81185334]
[1738014615572,16.81185334,234.44,234.2,16.81185334]
[1738014615871,16.81185334,234.4,234.2,16.81185334]
[1738014616476,4.2692,234.32,234.2,16.81185334]
[1738014616772,4.30155571,234.32,234.28,0.02688773]
[1738014616974,0.03235571,234.32,234.28,0.02688773]
[1738014617475,0.03235571,234.32,234.2,16.81185334]
[1738014617670,0.03235571,234.32,234.21,4.2711]
[1738014617876,1.45365571,234.32,234.21,4.2711]
[1738014618079,1.45365571,234.32,234.23,4.2707]
[1738014618267,0.03235571,234.32,234.23,4.2707]
[1738014618574,0.03235571,234.32,234.25,0.02784582]
[1738014619476,4.2694,234.31,234.25,0.02784582]
[1738014619976,0.03235571,234.32,234.25,0.02784582]
[1738014620577,4.27,234.27,234.25,0.02784582]
[1738014620877,0.03235571,234.32,234.25,0.02784582]
[1738014621777,4.2698,234.29,234.25,0.02784582]
[1738014621977,0.03235571,234.32,234.16,16.81185334]
[1738014622173,4.27,234.28,234.19,4.2715]
[1738014622370,16.81185334,234.36,234.11,41.92748746]
[1738014622371,1.5266,234.27,234.12,16.81185334]
[1738014622777,1.5266,234.27,234.18,4.2717]
[1738014623177,0.03003226,234.25,234.2,0.03152063]
[1738014624679,0.03003226,234.25,234.22,4.2708]
[1738014625479,0.03003226,234.25,234.2,0.03152063]
[1738014630685,4.2711,234.22,234.2,0.03152063]
[1738014630982,33.62370668,234.24,233.96,38.7094223]
[1738014631182,4.2729,234.11,234.03,4.2744]
[1738014631487,16.81185334,234.17,233.96,55.52127564]
[1738014631686,4.2731,234.1,234.01,4.2747]
[1738014632085,0.02913918,234.08,234.03,0.03190019]
[1738014632690,0.02913918,234.08,234.04,16.81185334]
[1738014632889,1.4942,234.21,234.12,4.2727]
[1738014633086,1.4942,234.21,234.05,0.4479]
[1738014633782,1.3924,234.24,234.05,0.4479]
[1738014634086,0.03182591,234.15,234.11,0.02930115]
[1738014634283,1.3924,234.24,234.11,0.02930115]
[1738014634787,0.02928076,234.2,234.13,4.2724]
[1738014634984,0.02928076,234.2,234.08,16.81185334]
[1738014635185,0.02928076,234.2,234.14,0.03052305]
[1738014635382,0.02928076,234.2,234.14,4.30282305]
[1738014635988,0.02928076,234.2,234.14,0.03052305]
[1738014636386,0.02928076,234.2,234.16,16.81185334]
[1738014636785,0.02928076,234.2,234.19,4.2715]
[1738014638386,0.02928076,234.2,234.16,4.2719]
[1738014638587,0.02928076,234.2,234.14,0.03052305]
[1738014641690,16.81185334,234.18,233.95,20.05792459]
[1738014641888,16.81185334,234.13,233.97,4.2755]
[1738014642190,1.2979,234.12,233.97,4.2755]
[1738014642392,4.2733,234.1,233.95,3.24607125]
[1738014642692,4.2733,234.1,233.97,4.2755]
[1738014642893,0.03121812,234.05,234.0,0.03038434]
[1738014645985,0.03121812,234.05,234.04,4.2742]
[1738014646191,0.03121812,234.05,234.0,0.03038434]
[1738014646590,0.03121812,234.05,234.02,4.2744]
[1738014646892,0.03121812,234.05,234.0,0.03038434]
[1738014647092,0.03121812,234.05,234.0,4.30518434]
[1738014647391,0.03121812,234.05,234.0,0.03038434]
[1738014647597,0.03121812,234.05,234.01,4.2747]
[1738014647896,0.03121812,234.05,234.0,0.03038434]
[1738014648094,0.03121812,234.05,234.03,16.81185334]
[1738014648296,0.03121812,234.05,234.04,4.2742]
[1738014648499,1.3239,234.15,234.03,16.81185334]
[1738014648797,1.3239,234.15,234.09,4.2731]
[1738014649095,1.4568,234.17,234.07,16.81185334]
[1738014649298,1.4568,234.17,234.1,4.2731]
[1738014649486,0.0275214,234.16,234.11,0.02944806]
[1738014649888,0.0275214,234.16,234.11,4.30224806]
[1738014650998,0.0275214,234.16,234.11,0.02944806]
[1738014651694,4.2713,234.21,234.11,0.02944806]
[1738014652000,1.2714914,234.24,234.11,0.02944806]
[1738014652399,4.2711,234.21,234.11,0.02944806]
[1738014652800,0.03031484,234.18,234.11,0.02944806]
[1738014654299,4.272,234.16,234.11,0.02944806]
[1738014654498,0.03031484,234.18,234.11,0.02944806]
[1738014655604,0.03031484,234.18,234.12,4.2727]
[1738014656903,0.03031484,234.18,234.11,0.02944806]
[1738014657603,0.03031484,234.18,234.11,4.30224806]
[1738014658607,0.03031484,234.18,234.12,4.2727]
[1738014658805,0.03031484,234.18,234.11,0.02944806]
[1738014659207,0.03031484,234.18,234.11,4.30234806]
[1738014660107,0.03031484,234.18,234.11,0.02944806]
[1738014662406,0.03031484,234.18,234.15,4.2721]
[1738014663411,0.03031484,234.18,234.11,0.02944806]
[1738014664215,0.03031484,234.18,234.11,4.30234806]
[1738014664413,0.03031484,234.18,234.11,0.02944806]
[1738014664912,0.03031484,234.18,234.13,4.2724]
[1738014665102,0.03031484,234.18,234.11,0.02944806]
[1738014666006,0.03031484,234.18,234.14,4.2723]
[1738014666806,0.03031484,234.18,234.11,0.02944806]
[1738014667005,0.03031484,234.18,234.15,4.2722]
[1738014667712,0.03031484,234.18,234.14,4.2723]
[1738014668712,0.03031484,234.18,234.17,4.2718]
[1738014668911,0.20955,234.3,234.16,16.81185334]
[1738014669112,0.20955,234.3,234.22,16.81185334]